Cogmind - Beta 16.1 @@@ ROGUE MODE // 2026.05.03 @ 22:02:59 Player: SunShine214 Result: Destroyed by S-10 Pest with Light Assault Rifle Performance ------------- Evolutions (0) 0 Regions Visited (2) 400 Robots Destroyed (22) 110 Value Destroyed (383) 383 Prototype IDs (0) 0 Alien Tech Used (0) 0 Bonus (0) 0 TOTAL SCORE: 893 Bonus ------- None Cogmind --------- Core Integrity 0/250 Matter 202/300 Energy 100/100 System Corruption 0% Temperature Cool (0) Movement Flying (40) Location -10/Subcaves Parts ------- > --- POWER (1) -------- (None) > --- PROPULSION (2) --- Flight Unit > --- UTILITY (2) ------ (None) > --- WEAPON (2) ------- (None) > --- INVENTORY (5) ---- Light Treads Light Treads Medium Storage Unit Mining Laser Peak State ------------ > --- POWER ------------ Improved Ion Engine > --- PROPULSION ------- Light Treads Light Treads > --- UTILITY ---------- Medium Storage Unit Seismic Detector > --- WEAPON ----------- Particle Cannon Particle Cannon > --- INVENTORY -------- Light Ion Engine Light Treads Flight Unit Flight Unit Sensor Array Signal Interpreter Medium Laser Particle Cannon Light Cannon Mining Laser [Rating: 11] Favorites ----------- Power Improved Ion Engine Engine Improved Ion Engine Propulsion Light Treads Treads Light Treads Flight Unit Flight Unit Utility Seismic Detector Device Seismic Detector Storage Medium Storage Unit Weapon Particle Cannon Energy Gun Medium Laser Energy Cannon Particle Cannon Ballistic Gun Heavy Assault Rifle Ballistic Cannon Light Cannon Launcher Subdweller Shrapnel Launcher Special Weapon Mining Laser Impact Weapon Hammer Build | -11 -10 -10 ------- Run | Yrd Mat Sub Slots Evolved . | . . . Power . | . . . Propulsion . | . . . Utility . | . . . Weapon . | . . . Parts Attached 21 | 8 9 4 Power 3 | 1 2 . Engine 3 | 1 2 . Core . | . . . Reactor . | . . . Propulsion 4 | 2 . 2 Treads 2 | 2 . . Leg . | . . . Wheel . | . . . Hover . | . . . Flight 2 | . . 2 Utility 3 | 2 1 . Device 1 | 1 . . Storage 2 | 1 1 . Processor . | . . . Hackware . | . . . Protection . | . . . Artifact . | . . . Weapon 11 | 3 6 2 Energy Gun 1 | 1 . . Energy Cannon 2 | . 2 . Ballistic Gun 4 | 2 2 . Ballistic Cannon 1 | . 1 . Launcher 1 | . . 1 Special Weapon 1 | . 1 . Impact Weapon 1 | . . 1 Slashing Weapon . | . . . Piercing Weapon . | . . . Special Melee Weapon . | . . . Unidentified Prototypes . | . . . Parts Lost 5 | . 1 4 Power 1 | . 1 . Propulsion 1 | . . 1 Utility 1 | . . 1 Weapon 2 | . . 2 Highest Loss Streak 2 | . 1 2 To Critical Strikes . | . . . Average Backups 7 | . 8 5 Power . | . . . Propulsion 2 | . 2 2 Utility . | . . . Weapon 3 | . 4 2 Tool/Special . | . . . Unused Backups 6 | . 2 4 Power . | . . . Propulsion 1 | . . 1 Utility 2 | . 1 1 Weapon 3 | . 1 2 Tool/Special . | . . . Average Slot Usage (%) 92 | . 99 53 Engine 12 | . 13 3 Treads 24 | . 28 3 Flight 2 | . . 17 Device 12 | . 14 2 Storage 12 | . 14 1 Energy Gun 3 | . 4 . Energy Cannon 9 | . 9 10 Ballistic Gun 11 | . 13 3 Impact Weapon 1 | . . 9 Peak Build Rating 11 | 7 11 11 Average Rating 8 | 4 9 4 On Entrance 6 | . 7 11 Avg Prop Armor Cover (%) . | . . . Naked Turns . | . . . Heaviest Build 26 | 13 26 25 Greatest Support 40 | 40 40 40 Greatest Overweight (x) 2 | . 1 2 Average Overweight (x) . | . . . Largest Inventory Capacity 10 | 8 10 10 Average Capacity 8 | 6 9 5 Most Carried 10 | 1 10 10 Average Carried 7 | . 8 5 Final Capacity 10 | 8 10 5 Final Carried 10 | 1 10 4 Class Distribution -------------------- 98% | Mutant Dominant Class ---------------- Mutant | -10/Materials Mutant | -10/Subcaves Resources | -11 -10 -10 ----------- Run | Yrd Mat Sub Matter Collected 564 | 286 212 66 Remotely . | . . . Salvage Created 591 | 125 398 68 Parts 48 | 10 30 8 Haulers Intercepted 2 | . 2 . Recyclers Shooed 1 | 1 . . Parts Field Recycled . | . . . Retrieved Matter . | . . . Parts Self-Destructed 6 | . . 6 Prevented . | . . . Parts Restored . | . . . Kills | -11 -10 -10 ------- Run | Yrd Mat Sub Combat Hostiles Destroyed 13 | . 9 4 Guns 8 | . 7 1 Cannons 2 | . 2 . AOE 3 | . . 3 Classes Destroyed 7 | 2 4 1 Tunneler 5 | 3 2 . Hauler 2 | . 2 . Recycler 1 | 1 . . Watcher 1 | . 1 . Swarmer 7 | . 5 2 Grunt 4 | . 4 . Subdweller 2 | . . 2 Best Kill Streak 4 | 4 3 2 Combat Bots Only 3 | . 3 2 Max Kills in Single Turn 1 | 1 1 1 Gunslinging . | . . . Exploded 1 | . . 1 Melee . | . . . Uniques/NPCs Destroyed . | . . . Combat | -11 -10 -10 -------- Run | Yrd Mat Sub Hostile Shots Fired 92 | . 49 43 Missed 34 | . 16 18 Hits 58 | . 33 25 Projectile 58 | . 33 25 Damage Taken 830 | . 375 455 Core 251 | . 46 205 Absorbed by Shields . | . . . Core Remaining (%) 100 | 100 . . Volleys Fired 64 | 5 45 14 Largest 2 | 2 2 2 Hottest 136 | 70 136 91 Shots Fired 121 | 10 90 21 Gun 82 | 10 64 8 Cannon 33 | . 25 8 Launcher 5 | . . 5 Special 1 | . 1 . Kinetic 57 | 5 39 13 Thermal 64 | 5 51 8 Explosive . | . . . Electromagnetic . | . . . Robot Hit Streak 14 | 6 14 11 Robot Miss Streak 4 | . 4 2 Penetration Max . | . . . Secondary Targets 2 | . 2 . Max Gunslinging Chain 1 | . 1 . Shots Hit Robots 76 | 6 53 17 Core Hits 28 | 5 19 4 Critical Kills . | . . . Critical Parts Destroyed . | . . . Critical Strikes 4 | 1 2 1 Burn 3 | 1 2 . Destroy 1 | . . 1 Melee Attacks 5 | . . 5 Impact 5 | . . 5 Slashing . | . . . Piercing . | . . . Sneak Attacks . | . . . Combat Hostiles . | . . . Follow-up Attacks . | . . . Damage Inflicted 1397 | 77 844 476 Guns 721 | 72 550 99 Cannons 415 | . 290 125 Explosions 252 | . . 252 Melee . | . . . Ramming 9 | 5 4 . Kinetic 683 | 10 322 351 Thermal 705 | 62 518 125 Explosive . | . . . Electromagnetic . | . . . Impact . | . . . Slashing . | . . . Piercing . | . . . Highest Corruption . | . . . Average Corruption . | . . . Corruption Purged . | . . . Corruption Blocked . | . . . Overload Shots . | . . . Overflow Damage 12 | . . 12 Projectiles . | . . . Explosions 12 | . . 12 Melee . | . . . Knockbacks . | . . . Impact . | . . . Kinetic . | . . . Secondary . | . . . Self-Inflicted Damage 61 | . . 61 Shots 3 | . . 3 Rammed 5 | 3 2 . Targets Rammed 6 | 3 3 . Kicked . | . . . Crushed 1 | . 1 . Highest Temperature 312 | 18 312 . Average Temperature 71 | 8 75 . Received Heat Transfer 261 | . 156 105 Effects 3 | . 3 . Interference 3 | . 3 . Siege Activations . | . . . Martial Activations . | . . . Shielding Activations . | . . . Robots Disrupted . | . . . Combat Hostiles . | . . . Robots Corrupted . | . . . Combat Hostiles . | . . . Parts Fried . | . . . Impact Corruptions . | . . . Robots Melted . | . . . Combat Hostiles . | . . . Parts Melted 3 | . 2 1 Heat Transferred 1813 | 259 1332 222 Parts Sabotaged . | . . . Parts Stolen . | . . . Parts Stripped . | . . . Power Chain Reactions . | . . . Alert | -11 -10 -10 ------- Run | Yrd Mat Sub Maximum Alert Level . | . . . Low Security (%) 100 | 100 100 . Level 1 . | . . . Level 2 . | . . . Level 3 . | . . . Level 4 . | . . . Level 5 . | . . . High Security . | . . . Max Security . | . . . Peak Influence 70 | 5 70 . Initial . | . . . Average 13 | 1 14 . Influence Increases 387 | 20 317 50 Destroy 0b10 Robot/C 220 | . 180 40 Destroy 0b10 Robot/NC 45 | 20 25 . Destroy Leader 66 | . 56 10 Successful Hack 26 | . 26 . Disable Machine 15 | . 15 . Lose Combat Pursuer 15 | . 15 . Influence Decreases 367 | 20 317 30 Time Decay 337 | 20 307 10 Lost Part 30 | . 10 20 Squads Dispatched 1 | . 1 . Investigation . | . . . Extermination . | . . . Reinforcement 1 | . 1 . Assault . | . . . Garrison . | . . . Intercept . | . . . Searches Triggered . | . . . Construction Impeded . | . . . Haulers Reinforced . | . . . Active Scanning Responses . | . . . Cargo Convoy Interrupts . | . . . Stealth | -11 -10 -10 --------- Run | Yrd Mat Sub Distress Signals . | . . . Communications Jammed . | . . . Distress Signals . | . . . Times Spotted 32 | . 21 11 Peak Tracking Total 6 | . 3 6 Tactical Retreats 2 | . 1 1 Traps | -11 -10 -10 ------- Run | Yrd Mat Sub Traps Triggered 1 | . 1 . Indirectly . | . . . Trap Hack Attempts . | . . . Triggered . | . . . Disarmed . | . . . Reprogrammed . | . . . Reused . | . . . Traps Extracted . | . . . Installed . | . . . Triggered . | . . . Machines | -11 -10 -10 ---------- Run | Yrd Mat Sub Machines Disabled 1 | . 1 . Max in Single Turn 1 | . 1 . Machines Repaired . | . . . Machines Dismantled . | . . . Machines Sabotaged . | . . . Overloaded Fab Kills . | . . . Hacking | -11 -10 -10 --------- Run | Yrd Mat Sub Machines Accessed 4 | . 4 . Terminals 4 | . 4 . Fabricators . | . . . Repair Stations . | . . . Recycling Units . | . . . Scanalyzers . | . . . Garrison Access . | . . . Total Hacks 6 | . 6 . Successful 5 | . 5 . Failed 1 | . 1 . Catastrophic . | . . . Database Lockouts . | . . . Manual 1 | . 1 . Terminals 6 | . 6 . Fabricators . | . . . Repair Stations . | . . . Recycling Units . | . . . Scanalyzers . | . . . Garrison Access . | . . . Terminal Hacks 5 | . 5 . Recall Reinforcements 1 | . 1 . Hauler Manifests 1 | . 1 . Registered Components 1 | . 1 . Zone Layout 2 | . 2 . Fabricator Hacks . | . . . Repair Station Hacks . | . . . Recycling Unit Hacks . | . . . Scanalyzer . | . . . Garrison Access Hacks . | . . . Unauthorized Hacks . | . . . Terminals . | . . . Fabricators . | . . . Repair Stations . | . . . Recycling Units . | . . . Scanalyzers . | . . . Garrison Access . | . . . Data Cores Recovered . | . . . Used . | . . . Hacking Detections 2 | . 2 . Full Trace Events . | . . . Feedback Events . | . . . Feedback Blocked . | . . . Robot Schematics Acquired . | . . . Robots Built . | . . . Authchips . | . . . Time . | . . . Total Robot Build Rating . | . . . Part Schematics Acquired . | . . . Parts Built . | . . . Authchips . | . . . Time . | . . . Total Part Build Rating . | . . . Part Studies Acquired . | . . . Parts Repaired . | . . . Time . | . . . Parts Recycled . | . . . Recycled Matter . | . . . Retrieved Matter . | . . . Retrieved Components . | . . . Parts Scanalyzed . | . . . Part Schematics Acquired . | . . . Parts Damaged . | . . . Bothacking | -11 -10 -10 ------------ Run | Yrd Mat Sub Used RIF Installer . | . . . Robots Hacked . | . . . Non-combat . | . . . Combat . | . . . Robot Hacks Applied . | . . . Relay Couplers Released . | . . . Fabnet Peak Effective % . | . . . Robots Rewired . | . . . Allies Hacked . | . . . Hacks Repelled . | . . . Allies | -11 -10 -10 -------- Run | Yrd Mat Sub Total Allies . | . . . Largest Group . | . . . Highest-Rated Group . | . . . Highest-Rated Ally . | . . . Total Orders . | . . . Ally Attacks . | . . . Total Damage . | . . . Kills . | . . . Allies Corrupted . | . . . Allies Melted . | . . . Intel | -11 -10 -10 ------- Run | Yrd Mat Sub Active Infowar (turns) 1645 | 27 1570 48 Seismic 1645 | 27 1570 48 Robot Analysis Total . | . . . Derelict Logs Recovered . | . . . Drone Launches . | . . . Drone Recoveries . | . . . Exploration | -11 -10 -10 ------------- Run | Yrd Mat Sub Turns Passed 1969 | 105 1570 294 Spaces Moved 1169 | 47 779 343 Core 8 | 2 . 6 Treads 841 | 45 779 17 Legs . | . . . Wheels . | . . . Hover . | . . . Flight 320 | . . 320 Fastest Speed 37 | 50 160 37 Average Speed 126 | 155 160 46 Slowest Speed 240 | 160 240 160 Overloaded Moves . | . . . Propulsion Burnouts . | . . . Robots Hopped 1 | . . 1 Potential Cave-ins . | . . . Cave-ins Triggered . | . . . Exploration Rate (%) 45 | 3 98 36 Regions Visited 2 Branch Regions 1 Pre-discovered Areas . | . . . Known Exits Taken . | . . . Unknown Exits Taken 2 | 1 1 . Scrap Searched . | . . . Spaces Dug . | . . . Terrain Destroyed 40 | . . 40 Melee . | . . . Projectile . | . . . AOE 40 | . . 40 Terrain Rammed . | . . . Walls Destroyed . | . . . Machines Disabled . | . . . Actions | -11 -10 -10 --------- Run | Yrd Mat Sub Total 1516 | 63 1005 448 Wait 219 | . 151 68 Move 1166 | 47 778 341 Hop 1 | . . 1 Pick Up 16 | 1 11 4 Fast Attach 13 | 7 4 2 Attach 1 | . . 1 Detach 1 | . . 1 Swap 11 | 1 8 2 Drop 14 | . 5 9 Fire 64 | 5 45 14 Melee 5 | . . 5 Ram . | . . . Kick . | . . . Crush 5 | 2 3 . Escape Stasis . | . . . Rewire . | . . . Trap . | . . . Miscellaneous . | . . . Route ------- -11/Scrapyard -10/Materials (discovered 5 exits: [*Mat x2] / [*Min x2] / [*Sub]) -10/Subcaves History --------- Turn | Location | Event 7 | -11/Scrapyard | Discovered new exit (range 15) 106 | -11/Scrapyard | Entered Materials 288 | -10/Materials | Discovered new exit (range 4) 316 | -10/Materials | Build established: Mutant 351 | -10/Materials | Discovered new exit (range 9) 692 | -10/Materials | Discovered new exit (range 14) 858 | -10/Materials | Discovered new exit (range 7) 921 | -10/Materials | Discovered new exit (range 16) 1676 | -10/Materials | Entered Subcaves 1772 | -10/Subcaves | Ambushed by Subdwellers from Twisted Machinery 1774 | -10/Subcaves | Core integrity fell below 50% 1793 | -10/Subcaves | A swath of the cavern ceiling suddenly collapsed 1883 | -10/Subcaves | Shifting Twisted Machinery released Multitool 1887 | -10/Subcaves | Shifting Twisted Machinery released Sub. Shrapnel Launcher 1956 | -10/Subcaves | Core integrity fell below 20% 1970 | -10/Subcaves | Destroyed by S-10 Pest with Light Assault Rifle Last Messages --------------- collapses. Multitool falls loose from the Twisted Machinery. Sub. Shrapnel Launcher falls loose from the Twisted Machinery. 01892_ Acquired Sub. Shrapnel Launcher. 01898_ Flight Unit destroyed. 01902_ 58-E14(R) destroyed. 01904_ Dropped Sub. Shrapnel Launcher. 01905_ Dropped Hvy. Assault Rifle. 01906_ Acquired Sub. Shrapnel Launcher. 01908_ Acquired 13 matter. 01955_ S-10 Pest destroyed. 01957_ Destroyed Lgt. Ion Engine. 01957_ S-10 Pest destroyed. 01957_ Hammer destroyed. 01959_ Sub. Shrapnel Launcher shoots sparks and powers down. 01965_ Flight Unit fries itself beyond repair. 01965_ Broken Sub. Shrapnel Launcher destroyed. Map ----- +----------------------------------------------------+ | ?????????# #???????????????????????????????? | | ?????????# ###???????????????????????????????? | | ??????#### #?????????????????????????????????? | | ??????# "" # #?????????????????????????????????? | | ??????#& ##????????????????????????????????? | | ??????#" & #????????????????????????????????? | | ??????# " #????????????????????????????????? | | ??????# "" ##????????????????????????????????? | | ??????##### ####?????????????????????????????????? | | ?????????# #????????????????????????????????????? | | ?????????## #????????????????????????????????????? | | ?????????# #????????????????????????????????????? | | ?????????## ##???????????????????????????????????? | | ?????????# #???????????????????????????????????? | | ?????????# #####?###????????????###?????????????? | | ?????????## # # ### ##????????## # # ????????????? | | ?????????# #????????;# ???????????? | | ?????????# ########?;; ????????????? | | ?????????# # # # # ## # ; ?????????????? | | ?????????########## # ;##?????????????? | | ??????????????????# #### ;;#?????????????? | | ??????????????????#### s ; ; ;#?????????????? | | ???????????## #####??## ;;; ;#?????????????? | | ??????????% % ## [% ;#?????????????? | | ???????????????# ;#?????????????? | | ???????????????# ## @ #?????????????? | | ???????????????#????# #?????????????? | | ????????????????????# ;# #?????????????? | | ????????????????????# ###?## #?????????????? | | ????????????????????# #?????? #????????????? | | ????????????????????#### ??????? ##????????????? | | ???????????????????????# #??????????????????????? | | ???????????????????????# ##??????????????????????? | | ???????????????????????###???????????????????????? | | ?????????????????????????????????????????????????? | | ?????????????????????????????????????????????????? | | ?????????????????????????????????????????????????? | | ?????????????????????????????????????????????????? | | ?????????????????????????????????????????????????? | | ?????????????????????????????????????????????????? | | ?????????????????????????????????????????????????? | | ?????????????????????????????????????????????????? | | ?????????????????????????????????????????????????? | | ?????????????????????????????????????????????????? | | ?????????????????????????????????????????????????? | | ?????????????????????????????????????????????????? | | ?????????????????????????????????????????????????? | | ?????????????????????????????????????????????????? | | ?????????????????????????????????????????????????? | | ?????????????????????????????????????????????????? | +----------------------------------------------------+ Best States ------------- Heat Dissipation 25 Energy Generation 12 Energy Capacity 265 Matter Stores 300 Matter Capacity 300 Sight Range 16 Terrain Scan Density 10 Evasion (%) 62 Recoil Reduction 2 Item Schematics ----------------- None Robot Schematics ------------------ None Fabricated ------------ Nothing Repaired ---------- Nothing Studied --------- None Alien Tech Used ----------------- None Achievements -------------- None Challenges ------------ None Game ------ Seed SapperCobblerCleaver Manual? 0 Play Time 00:12:20 Cumulative 169.3 hours Start 2026.05.03 @ 21:53:31 End 2026.05.03 @ 22:02:59 Sessions 1 Manual Loads 0 Difficulty Rogue Special Mode None Game No. 267 Rogue 267 Adventurer 0 Explorer 0 Win Type - Total 1 Types 1/0/0/0/0/0/0/0/0/0 Lore% 59 Gallery% 57 Achievement% 44 Wizard Run 0 Options --------- Layout 1 ASCII 0 Keyboard 1 Movement Arrows Keybinds 0 Fullscreen 1 Font 24/Smallcaps Map View 50x35 Zoom Use 0% Tactical HUD 1 Map Filters NONE Filters NONE Steam 1 RUN: 7a161b5c-7fcf-4822-8571-17a70d6c242d